[Event "Titled Tuesday Blitz March 21 Early 2023"]
[White "Lorparizangeneh, Shahin"]
[Black "babbilator"]
[WhiteFideId "12521604"]
[WhiteElo "2526"]
[BlackElo "2224"]
[Result "1-0"]
[Round "04"]
[TimeControl "180+2"]
[Date "2023.03.21"]
[WhiteClock "0:01:08"]
[BlackClock "0:00:15"]

1. e4 {[%clk 0:03:00]}  c5 {[%clk 0:02:57]} 2. Nf3 {[%clk 0:03:01]}  e6 {[%clk 0:02:56]} 3. g3 {[%clk 0:03:00]}  Nc6 {[%clk 0:02:44]} 4. Bg2 {[%clk 0:02:57]}  Nf6 {[%clk 0:02:41]} 5. Qe2 {[%clk 0:02:57]}  e5 {[%clk 0:02:33]} 6. O-O {[%clk 0:02:56]}  Be7 {[%clk 0:02:32]} 7. c3 {[%clk 0:02:56]}  O-O {[%clk 0:02:29]} 8. d4 {[%clk 0:02:55]}  cxd4 {[%clk 0:02:26]} 9. cxd4 {[%clk 0:02:56]}  exd4 {[%clk 0:02:21]} 10. e5 {[%clk 0:02:54]}  Ne8 {[%clk 0:02:15]} 11. Rd1 {[%clk 0:02:52]}  d6 {[%clk 0:02:03]} 12. exd6 {[%clk 0:02:27]}  Bf6 {[%clk 0:01:57]} 13. Na3 {[%clk 0:02:15]}  Nxd6 {[%clk 0:01:53]} 14. Nb5 {[%clk 0:02:14]}  Bg4 {[%clk 0:01:06]} 15. h3 {[%clk 0:02:09]}  Bxf3 {[%clk 0:00:58]} 16. Bxf3 {[%clk 0:02:10]}  Nxb5 {[%clk 0:00:40]} 17. Qxb5 {[%clk 0:02:10]}  Qb6 {[%clk 0:00:38]} 18. Qxb6 {[%clk 0:01:56]}  axb6 {[%clk 0:00:38]} 19. Bf4 {[%clk 0:01:57]}  Rac8 {[%clk 0:00:21]} 20. Rac1 {[%clk 0:01:43]}  Rfd8 {[%clk 0:00:21]} 21. a3 {[%clk 0:01:07]}  h6 {[%clk 0:00:20]} 22. Bg4 {[%clk 0:01:07]}  Ra8 {[%clk 0:00:17]} 23. Bc7 {[%clk 0:01:08]}  Rd7 {[%clk 0:00:15]} 1-0


[Site "https://www.chess.com"]

[Event "Titled Tuesday Blitz March 21 Early 2023"]
[White "Omariev, Maksim"]
[Black "Biriukov, Ilja"]
[WhiteFideId "4193423"]
[BlackFideId "4113373"]
[WhiteElo "2452"]
[BlackElo "2426"]
[Result "1-0"]
[Round "04"]
[TimeControl "180+2"]
[Date "2023.03.21"]
[WhiteClock "0:00:13"]
[BlackClock "0:00:25"]

1. h4 {[%clk 0:02:52]}  Nc6 {[%clk 0:02:15]} 2. h5 {[%clk 0:02:53]}  h6 {[%clk 0:02:14]} 3. d4 {[%clk 0:02:51]}  d5 {[%clk 0:02:13]} 4. Nf3 {[%clk 0:02:50]}  Bg4 {[%clk 0:02:11]} 5. Ne5 {[%clk 0:02:49]}  Nxe5 {[%clk 0:02:09]} 6. dxe5 {[%clk 0:02:50]}  e6 {[%clk 0:02:07]} 7. f3 {[%clk 0:02:47]}  Bf5 {[%clk 0:02:07]} 8. g4 {[%clk 0:02:47]}  Bh7 {[%clk 0:02:06]} 9. Bf4 {[%clk 0:02:47]}  Be7 {[%clk 0:02:05]} 10. Qd2 {[%clk 0:02:47]}  Bh4+ {[%clk 0:02:00]} 11. Kd1 {[%clk 0:02:46]}  Bg5 {[%clk 0:01:58]} 12. e3 {[%clk 0:02:44]}  Bxf4 {[%clk 0:01:53]} 13. exf4 {[%clk 0:02:44]}  Ne7 {[%clk 0:01:53]} 14. Nc3 {[%clk 0:02:43]}  a6 {[%clk 0:01:51]} 15. Bd3 {[%clk 0:02:43]}  Bxd3 {[%clk 0:01:50]} 16. cxd3 {[%clk 0:02:43]}  c5 {[%clk 0:01:49]} 17. Ke2 {[%clk 0:02:20]}  b5 {[%clk 0:01:47]} 18. d4 {[%clk 0:02:17]}  cxd4 {[%clk 0:01:44]} 19. Qxd4 {[%clk 0:02:18]}  Rc8 {[%clk 0:01:40]} 20. Rac1 {[%clk 0:02:16]}  Rc4 {[%clk 0:01:39]} 21. Qd2 {[%clk 0:02:16]}  Nc6 {[%clk 0:01:30]} 22. Kf2 {[%clk 0:02:15]}  Qb6+ {[%clk 0:01:24]} 23. Kg3 {[%clk 0:02:15]}  Ke7 {[%clk 0:01:17]} 24. b3 {[%clk 0:02:13]}  Rd4 {[%clk 0:01:05]} 25. Qf2 {[%clk 0:02:13]}  Rb8 {[%clk 0:00:59]} 26. Rhd1 {[%clk 0:01:36]}  Rxd1 {[%clk 0:00:57]} 27. Qxb6 {[%clk 0:01:27]}  Rxb6 {[%clk 0:00:58]} 28. Nxd1 {[%clk 0:01:28]}  Kd7 {[%clk 0:00:57]} 29. Nf2 {[%clk 0:01:22]}  Nb4 {[%clk 0:00:55]} 30. a3 {[%clk 0:01:22]}  Rc6 {[%clk 0:00:53]} 31. Rxc6 {[%clk 0:01:08]}  Nxc6 {[%clk 0:00:54]} 32. Nd3 {[%clk 0:01:09]}  Nd4 {[%clk 0:00:53]} 33. b4 {[%clk 0:00:57]}  Nc2 {[%clk 0:00:48]} 34. f5 {[%clk 0:00:25]}  Nxa3 {[%clk 0:00:44]} 35. Nc5+ {[%clk 0:00:24]}  Ke7 {[%clk 0:00:42]} 36. Nxa6 {[%clk 0:00:23]}  Nc2 {[%clk 0:00:41]} 37. Kf4 {[%clk 0:00:22]}  Nxb4 {[%clk 0:00:40]} 38. Nxb4 {[%clk 0:00:21]}  f6 {[%clk 0:00:34]} 39. Nc6+ {[%clk 0:00:14]}  Kd7 {[%clk 0:00:33]} 40. Nd4 {[%clk 0:00:14]}  exf5 {[%clk 0:00:31]} 41. Kxf5 {[%clk 0:00:15]}  b4 {[%clk 0:00:26]} 42. exf6 {[%clk 0:00:13]}  gxf6 {[%clk 0:00:26]} 43. Kxf6 {[%clk 0:00:14]}  Kd6 {[%clk 0:00:27]} 44. g5 {[%clk 0:00:13]}  hxg5 {[%clk 0:00:25]} 45. h6 {[%clk 0:00:13]} 1-0


[Site "https://www.chess.com"]

[Event "Titled Tuesday Blitz March 21 Early 2023"]
[White "Vedder, Richard"]
[Black "Thiel, Thomas"]
[WhiteFideId "1004166"]
[BlackFideId "4615964"]
[WhiteElo "2168"]
[BlackElo "2243"]
[Result "1-0"]
[Round "04"]
[TimeControl "180+2"]
[Date "2023.03.21"]
[WhiteClock "0:00:36"]
[BlackClock "0:00:01"]

1. d4 {[%clk 0:03:00]}  Nf6 {[%clk 0:02:57]} 2. c4 {[%clk 0:03:01]}  g6 {[%clk 0:02:57]} 3. Nc3 {[%clk 0:03:01]}  d5 {[%clk 0:02:56]} 4. cxd5 {[%clk 0:03:02]}  Nxd5 {[%clk 0:02:54]} 5. Bd2 {[%clk 0:03:03]}  c5 {[%clk 0:02:52]} 6. dxc5 {[%clk 0:03:01]}  Bg7 {[%clk 0:02:49]} 7. e4 {[%clk 0:02:58]}  Nxc3 {[%clk 0:02:47]} 8. Bxc3 {[%clk 0:02:59]}  Bxc3+ {[%clk 0:02:44]} 9. bxc3 {[%clk 0:03:00]}  Qxd1+ {[%clk 0:02:42]} 10. Rxd1 {[%clk 0:02:59]}  O-O {[%clk 0:02:34]} 11. Nf3 {[%clk 0:02:59]}  Be6 {[%clk 0:02:29]} 12. a4 {[%clk 0:02:56]}  Nd7 {[%clk 0:02:28]} 13. c6 {[%clk 0:02:54]}  bxc6 {[%clk 0:02:27]} 14. Nd4 {[%clk 0:02:55]}  Ne5 {[%clk 0:02:06]} 15. Nxe6 {[%clk 0:02:54]}  fxe6 {[%clk 0:02:07]} 16. Be2 {[%clk 0:02:54]}  Rab8 {[%clk 0:02:02]} 17. O-O {[%clk 0:02:54]}  Rb2 {[%clk 0:02:00]} 18. Ba6 {[%clk 0:02:47]}  Rb6 {[%clk 0:01:46]} 19. Be2 {[%clk 0:02:42]}  Rb2 {[%clk 0:01:45]} 20. Rde1 {[%clk 0:02:36]}  Kg7 {[%clk 0:01:39]} 21. f4 {[%clk 0:02:36]}  Nd7 {[%clk 0:01:38]} 22. Bc4 {[%clk 0:02:35]}  Nc5 {[%clk 0:01:37]} 23. a5 {[%clk 0:02:31]}  Rd8 {[%clk 0:01:34]} 24. Rd1 {[%clk 0:02:26]}  Rxd1 {[%clk 0:01:32]} 25. Rxd1 {[%clk 0:02:27]}  Nxe4 {[%clk 0:01:31]} 26. Bxe6 {[%clk 0:02:27]}  Nxc3 {[%clk 0:01:23]} 27. Rd7 {[%clk 0:02:26]}  Ne2+ {[%clk 0:01:15]} 28. Kf1 {[%clk 0:02:23]}  Nxf4 {[%clk 0:01:16]} 29. Bc4 {[%clk 0:02:18]}  Rb4 {[%clk 0:01:10]} 30. Rxe7+ {[%clk 0:02:12]}  Kf6 {[%clk 0:01:10]} 31. Rf7+ {[%clk 0:02:12]}  Ke5 {[%clk 0:01:10]} 32. Ba6 {[%clk 0:02:08]}  Ra4 {[%clk 0:01:05]} 33. g3 {[%clk 0:01:51]}  Nd5 {[%clk 0:01:02]} 34. Bb7 {[%clk 0:01:45]}  Rxa5 {[%clk 0:01:00]} 35. Bxc6 {[%clk 0:01:45]}  Nf6 {[%clk 0:00:57]} 36. Bf3 {[%clk 0:01:38]}  Ra2 {[%clk 0:00:56]} 37. h4 {[%clk 0:01:37]}  a5 {[%clk 0:00:53]} 38. Re7+ {[%clk 0:01:35]}  Kd6 {[%clk 0:00:51]} 39. Rf7 {[%clk 0:01:33]}  Ke6 {[%clk 0:00:49]} 40. Ra7 {[%clk 0:01:33]}  a4 {[%clk 0:00:46]} 41. Ra6+ {[%clk 0:01:31]}  Ke5 {[%clk 0:00:46]} 42. Ra5+ {[%clk 0:01:32]}  Kd4 {[%clk 0:00:46]} 43. Ra6 {[%clk 0:01:27]}  Nh5 {[%clk 0:00:37]} 44. Bxh5 {[%clk 0:01:26]}  gxh5 {[%clk 0:00:38]} 45. Ra5 {[%clk 0:01:23]}  Ke3 {[%clk 0:00:36]} 46. Rxh5 {[%clk 0:01:15]}  Rf2+ {[%clk 0:00:30]} 47. Kg1 {[%clk 0:01:13]}  Rf3 {[%clk 0:00:16]} 48. Kg2 {[%clk 0:01:10]}  Rf2+ {[%clk 0:00:13]} 49. Kg1 {[%clk 0:01:09]}  Rf3 {[%clk 0:00:11]} 50. Kg2 {[%clk 0:01:09]}  Rf2+ {[%clk 0:00:11]} 51. Kh3 {[%clk 0:01:06]}  Rf1 {[%clk 0:00:10]} 52. Rxh7 {[%clk 0:01:01]}  a3 {[%clk 0:00:10]} 53. Ra7 {[%clk 0:01:01]}  Ra1 {[%clk 0:00:08]} 54. Kg4 {[%clk 0:00:58]}  a2 {[%clk 0:00:08]} 55. h5 {[%clk 0:00:58]}  Kf2 {[%clk 0:00:07]} 56. h6 {[%clk 0:00:56]}  Ke3 {[%clk 0:00:04]} 57. h7 {[%clk 0:00:55]}  Rh1 {[%clk 0:00:03]} 58. Rxa2 {[%clk 0:00:50]}  Rxh7 {[%clk 0:00:04]} 59. Ra4 {[%clk 0:00:49]}  Rg7+ {[%clk 0:00:03]} 60. Kh3 {[%clk 0:00:48]}  Kf3 {[%clk 0:00:01]} 61. Rf4+ {[%clk 0:00:47]}  Ke3 {[%clk 0:00:01]} 62. Rf1 {[%clk 0:00:41]}  Ke4 {[%clk 0:00:02]} 63. g4 {[%clk 0:00:39]}  Ke3 {[%clk 0:00:02]} 64. Kh4 {[%clk 0:00:38]}  Ke4 {[%clk 0:00:03]} 65. g5 {[%clk 0:00:37]}  Ke5 {[%clk 0:00:04]} 66. Kh5 {[%clk 0:00:37]}  Ke6 {[%clk 0:00:04]} 67. g6 {[%clk 0:00:37]}  Rg8 {[%clk 0:00:04]} 68. Kh6 {[%clk 0:00:37]}  Rh8+ {[%clk 0:00:03]} 69. Kg7 {[%clk 0:00:36]}  Rh2 {[%clk 0:00:03]} 70. Re1+ {[%clk 0:00:35]}  Kd7 {[%clk 0:00:03]} 71. Kf7 {[%clk 0:00:36]}  Rf2+ {[%clk 0:00:01]} 72. Kg8 {[%clk 0:00:36]} 1-0


[Site "https://www.chess.com"]

[Event "Titled Tuesday Blitz March 21 Early 2023"]
[White "Clawitter, Craig"]
[Black "Chernov, Mikhail"]
[WhiteFideId "2023105"]
[BlackFideId "24143170"]
[WhiteElo "2238"]
[BlackElo "2113"]
[Result "0-1"]
[Round "04"]
[TimeControl "180+2"]
[Date "2023.03.21"]
[WhiteClock "0:00:02"]
[BlackClock "0:01:57"]

1. e4 {[%clk 0:02:02]}  g6 {[%clk 0:02:57]} 2. d4 {[%clk 0:02:01]}  Bg7 {[%clk 0:02:58]} 3. Nc3 {[%clk 0:02:02]}  d6 {[%clk 0:02:58]} 4. Be3 {[%clk 0:02:03]}  a6 {[%clk 0:02:59]} 5. Qd2 {[%clk 0:02:03]}  b5 {[%clk 0:02:59]} 6. Bd3 {[%clk 0:01:59]}  Nd7 {[%clk 0:02:59]} 7. Nf3 {[%clk 0:01:59]}  Bb7 {[%clk 0:02:55]} 8. O-O {[%clk 0:01:56]}  e6 {[%clk 0:02:54]} 9. a4 {[%clk 0:01:49]}  b4 {[%clk 0:02:54]} 10. Ne2 {[%clk 0:01:48]}  a5 {[%clk 0:02:54]} 11. h3 {[%clk 0:01:38]}  h6 {[%clk 0:02:53]} 12. c3 {[%clk 0:01:37]}  c5 {[%clk 0:02:53]} 13. Ng3 {[%clk 0:01:32]}  Ne7 {[%clk 0:02:51]} 14. Bb5 {[%clk 0:01:13]}  cxd4 {[%clk 0:02:38]} 15. Bxd4 {[%clk 0:00:57]}  Bxd4 {[%clk 0:02:33]} 16. Qxd4 {[%clk 0:00:55]}  O-O {[%clk 0:02:33]} 17. Qxd6 {[%clk 0:00:50]}  Nf6 {[%clk 0:02:33]} 18. Qxd8 {[%clk 0:00:20]}  Rfxd8 {[%clk 0:02:34]} 19. cxb4 {[%clk 0:00:19]}  axb4 {[%clk 0:02:31]} 20. Rfe1 {[%clk 0:00:17]}  g5 {[%clk 0:02:24]} 21. Rad1 {[%clk 0:00:14]}  Ng6 {[%clk 0:02:24]} 22. Rc1 {[%clk 0:00:09]}  Nf4 {[%clk 0:02:19]} 23. Rc7 {[%clk 0:00:07]}  Rab8 {[%clk 0:02:19]} 24. Rec1 {[%clk 0:00:05]}  g4 {[%clk 0:02:09]} 25. hxg4 {[%clk 0:00:05]}  Nxg4 {[%clk 0:02:10]} 26. a5 {[%clk 0:00:04]}  Bxe4 {[%clk 0:02:09]} 27. Nxe4 {[%clk 0:00:04]}  Rxb5 {[%clk 0:02:09]} 28. a6 {[%clk 0:00:05]}  Ne2+ {[%clk 0:02:07]} 29. Kf1 {[%clk 0:00:03]}  Nxc1 {[%clk 0:02:08]} 30. Rxc1 {[%clk 0:00:03]}  Ra5 {[%clk 0:01:59]} 31. Nc5 {[%clk 0:00:02]}  Rc8 {[%clk 0:01:57]} 0-1


[Site "https://www.chess.com"]

[Event "Titled Tuesday Blitz March 21 Early 2023"]
[White "Forgacs, Attila Jr."]
[Black "ritanovikova"]
[WhiteFideId "773654"]
[WhiteElo "2168"]
[BlackElo "2209"]
[Result "1/2-1/2"]
[Round "04"]
[TimeControl "180+2"]
[Date "2023.03.21"]
[WhiteClock "0:00:04"]
[BlackClock "0:00:19"]

1. a3 {[%clk 0:03:00]}  e5 {[%clk 0:02:47]} 2. e4 {[%clk 0:02:59]}  Nf6 {[%clk 0:02:46]} 3. Nc3 {[%clk 0:02:59]}  d5 {[%clk 0:02:42]} 4. exd5 {[%clk 0:02:59]}  Nxd5 {[%clk 0:02:41]} 5. Nf3 {[%clk 0:02:57]}  Nxc3 {[%clk 0:02:40]} 6. bxc3 {[%clk 0:02:57]}  Bd6 {[%clk 0:02:39]} 7. d4 {[%clk 0:02:56]}  exd4 {[%clk 0:02:35]} 8. cxd4 {[%clk 0:02:56]}  O-O {[%clk 0:02:35]} 9. Be2 {[%clk 0:02:56]}  Re8 {[%clk 0:02:32]} 10. O-O {[%clk 0:02:54]}  Bg4 {[%clk 0:02:29]} 11. Be3 {[%clk 0:02:48]}  Nd7 {[%clk 0:02:26]} 12. c4 {[%clk 0:02:47]}  c6 {[%clk 0:02:22]} 13. h3 {[%clk 0:02:39]}  Bh5 {[%clk 0:02:19]} 14. Qb3 {[%clk 0:02:32]}  b6 {[%clk 0:02:13]} 15. Rfe1 {[%clk 0:02:05]}  Nf6 {[%clk 0:01:56]} 16. c5 {[%clk 0:01:55]}  Bc7 {[%clk 0:01:55]} 17. Bc4 {[%clk 0:01:46]}  b5 {[%clk 0:01:53]} 18. Be2 {[%clk 0:01:43]}  Nd5 {[%clk 0:01:50]} 19. Bg5 {[%clk 0:01:35]}  f6 {[%clk 0:01:44]} 20. Bd2 {[%clk 0:01:34]}  Bf7 {[%clk 0:01:43]} 21. Qc2 {[%clk 0:01:28]}  Bg6 {[%clk 0:01:42]} 22. Bd3 {[%clk 0:01:27]}  Bxd3 {[%clk 0:01:40]} 23. Qxd3 {[%clk 0:01:28]}  Qd7 {[%clk 0:01:38]} 24. a4 {[%clk 0:01:09]}  a6 {[%clk 0:01:37]} 25. axb5 {[%clk 0:01:02]}  axb5 {[%clk 0:01:29]} 26. Rxa8 {[%clk 0:01:02]}  Rxa8 {[%clk 0:01:29]} 27. Qe4 {[%clk 0:01:00]}  Kf7 {[%clk 0:01:27]} 28. Qxh7 {[%clk 0:00:54]}  Ne7 {[%clk 0:01:04]} 29. Qe4 {[%clk 0:00:33]}  Ng6 {[%clk 0:00:59]} 30. h4 {[%clk 0:00:21]}  Re8 {[%clk 0:00:58]} 31. Qxe8+ {[%clk 0:00:19]}  Qxe8 {[%clk 0:00:59]} 32. Rxe8 {[%clk 0:00:20]}  Kxe8 {[%clk 0:00:59]} 33. h5 {[%clk 0:00:21]}  Ne7 {[%clk 0:00:58]} 34. Kf1 {[%clk 0:00:18]}  Kf7 {[%clk 0:00:58]} 35. Ke2 {[%clk 0:00:18]}  Ke6 {[%clk 0:00:58]} 36. g4 {[%clk 0:00:16]}  Kd5 {[%clk 0:00:57]} 37. Kd3 {[%clk 0:00:16]}  Ke6 {[%clk 0:00:45]} 38. Nh4 {[%clk 0:00:16]}  Bh2 {[%clk 0:00:43]} 39. Ng2 {[%clk 0:00:13]}  Bg1 {[%clk 0:00:42]} 40. f4 {[%clk 0:00:08]}  Nd5 {[%clk 0:00:41]} 41. g5 {[%clk 0:00:08]}  fxg5 {[%clk 0:00:40]} 42. fxg5 {[%clk 0:00:09]}  Kf5 {[%clk 0:00:38]} 43. h6 {[%clk 0:00:09]}  gxh6 {[%clk 0:00:38]} 44. gxh6 {[%clk 0:00:09]}  Kg6 {[%clk 0:00:38]} 45. Nh4+ {[%clk 0:00:10]}  Kh7 {[%clk 0:00:36]} 46. Nf5 {[%clk 0:00:10]}  Bh2 {[%clk 0:00:33]} 47. Nh4 {[%clk 0:00:07]}  Bg3 {[%clk 0:00:33]} 48. Nf3 {[%clk 0:00:07]}  Bc7 {[%clk 0:00:32]} 49. Ng5+ {[%clk 0:00:06]}  Kh8 {[%clk 0:00:29]} 50. Ne6 {[%clk 0:00:06]}  Bf4 {[%clk 0:00:27]} 51. Nd8 {[%clk 0:00:06]}  Bxd2 {[%clk 0:00:25]} 52. Kxd2 {[%clk 0:00:06]}  Ne7 {[%clk 0:00:25]} 53. Ne6 {[%clk 0:00:04]}  Kh7 {[%clk 0:00:25]} 54. Kc3 {[%clk 0:00:03]}  Kxh6 {[%clk 0:00:25]} 55. Kb4 {[%clk 0:00:04]}  Kg6 {[%clk 0:00:23]} 56. Nc7 {[%clk 0:00:04]}  Kf5 {[%clk 0:00:22]} 57. d5 {[%clk 0:00:04]}  cxd5 {[%clk 0:00:21]} 58. Kxb5 {[%clk 0:00:04]}  d4 {[%clk 0:00:21]} 59. Na6 {[%clk 0:00:03]}  Ke4 {[%clk 0:00:20]} 60. Nb4 {[%clk 0:00:02]}  d3 {[%clk 0:00:19]} 61. Nxd3 {[%clk 0:00:02]}  Kxd3 {[%clk 0:00:20]} 62. Kb6 {[%clk 0:00:03]}  Kd4 {[%clk 0:00:19]} 63. Kc7 {[%clk 0:00:04]}  Kxc5 {[%clk 0:00:19]} 1/2-1/2


[Site "https://www.chess.com"]

[Event "Titled Tuesday Blitz March 21 Early 2023"]
[White "Shevtchenko, Olesya"]
[Black "Ciuffoletti, Paolo"]
[WhiteFideId "24131890"]
[BlackFideId "807630"]
[WhiteElo "2003"]
[BlackElo "2143"]
[Result "1-0"]
[Round "04"]
[TimeControl "180+2"]
[Date "2023.03.21"]
[WhiteClock "0:01:52"]
[BlackClock "0:00:07"]

1. e4 {[%clk 0:02:47]}  c5 {[%clk 0:02:58]} 2. Nf3 {[%clk 0:02:42]}  Nc6 {[%clk 0:02:58]} 3. d4 {[%clk 0:02:43]}  cxd4 {[%clk 0:02:58]} 4. Nxd4 {[%clk 0:02:44]}  Nf6 {[%clk 0:02:58]} 5. Nc3 {[%clk 0:02:44]}  e5 {[%clk 0:02:57]} 6. Ndb5 {[%clk 0:02:44]}  d6 {[%clk 0:02:58]} 7. Nd5 {[%clk 0:02:45]}  Nxd5 {[%clk 0:02:56]} 8. exd5 {[%clk 0:02:46]}  Nb8 {[%clk 0:02:56]} 9. Qf3 {[%clk 0:02:45]}  Be7 {[%clk 0:02:32]} 10. Qc3 {[%clk 0:02:29]}  Na6 {[%clk 0:02:31]} 11. Be3 {[%clk 0:02:26]}  O-O {[%clk 0:02:04]} 12. Nxa7 {[%clk 0:02:12]}  Bf5 {[%clk 0:01:38]} 13. Bxa6 {[%clk 0:02:08]}  bxa6 {[%clk 0:01:30]} 14. Nc6 {[%clk 0:02:08]}  Qd7 {[%clk 0:01:25]} 15. O-O {[%clk 0:02:07]}  Be4 {[%clk 0:01:02]} 16. Qd2 {[%clk 0:02:06]}  Rac8 {[%clk 0:00:50]} 17. c4 {[%clk 0:02:03]}  Bg6 {[%clk 0:00:33]} 18. f4 {[%clk 0:01:59]}  exf4 {[%clk 0:00:26]} 19. Bxf4 {[%clk 0:02:00]}  Bf6 {[%clk 0:00:25]} 20. Rae1 {[%clk 0:01:59]}  Rxc6 {[%clk 0:00:20]} 21. dxc6 {[%clk 0:01:58]}  Qxc6 {[%clk 0:00:20]} 22. Bxd6 {[%clk 0:01:56]}  Rd8 {[%clk 0:00:16]} 23. Rxf6 {[%clk 0:01:54]}  gxf6 {[%clk 0:00:11]} 24. c5 {[%clk 0:01:55]}  Qxc5+ {[%clk 0:00:08]} 25. Bxc5 {[%clk 0:01:52]}  Rxd2 {[%clk 0:00:08]} 26. Re8+ {[%clk 0:01:51]}  Kg7 {[%clk 0:00:07]} 27. Bf8+ {[%clk 0:01:52]} 1-0


[Site "https://www.chess.com"]

[Event "Titled Tuesday Blitz March 21 Early 2023"]
[White "Valle Maytin, Luis Enrique"]
[Black "Sabar, Ethmane Daouda"]
[WhiteFideId "3503666"]
[BlackFideId "19600097"]
[WhiteElo "2225"]
[BlackElo "1950"]
[Result "1/2-1/2"]
[Round "04"]
[TimeControl "180+2"]
[Date "2023.03.21"]
[WhiteClock "0:00:23"]
[BlackClock "0:00:08"]

1. e4 {[%clk 0:03:00]}  c5 {[%clk 0:02:57]} 2. Nf3 {[%clk 0:03:00]}  Nc6 {[%clk 0:02:57]} 3. d4 {[%clk 0:03:01]}  cxd4 {[%clk 0:02:58]} 4. Nxd4 {[%clk 0:03:02]}  Nf6 {[%clk 0:02:57]} 5. Nc3 {[%clk 0:03:02]}  e5 {[%clk 0:02:58]} 6. Ndb5 {[%clk 0:03:02]}  d6 {[%clk 0:02:58]} 7. Bg5 {[%clk 0:03:00]}  a6 {[%clk 0:02:58]} 8. Na3 {[%clk 0:03:01]}  b5 {[%clk 0:02:58]} 9. Bxf6 {[%clk 0:02:59]}  gxf6 {[%clk 0:02:59]} 10. Nd5 {[%clk 0:02:59]}  Bg7 {[%clk 0:02:59]} 11. c4 {[%clk 0:02:55]}  b4 {[%clk 0:02:57]} 12. Nc2 {[%clk 0:02:55]}  O-O {[%clk 0:02:56]} 13. Be2 {[%clk 0:02:50]}  a5 {[%clk 0:02:53]} 14. b3 {[%clk 0:02:49]}  f5 {[%clk 0:02:52]} 15. f3 {[%clk 0:02:30]}  fxe4 {[%clk 0:02:49]} 16. O-O {[%clk 0:02:30]}  exf3 {[%clk 0:02:41]} 17. Bxf3 {[%clk 0:02:30]}  Bb7 {[%clk 0:02:07]} 18. Be4 {[%clk 0:02:26]}  Qh4 {[%clk 0:02:05]} 19. Qd3 {[%clk 0:02:22]}  f5 {[%clk 0:01:45]} 20. Bxf5 {[%clk 0:02:16]}  e4 {[%clk 0:01:45]} 21. Qxe4 {[%clk 0:01:34]}  Qxe4 {[%clk 0:01:43]} 22. Bxe4 {[%clk 0:01:35]}  Bxa1 {[%clk 0:01:42]} 23. Rxa1 {[%clk 0:01:36]}  Rae8 {[%clk 0:01:39]} 24. Bf3 {[%clk 0:01:21]}  Ne5 {[%clk 0:01:34]} 25. Nf6+ {[%clk 0:01:08]}  Rxf6 {[%clk 0:01:30]} 26. Bxb7 {[%clk 0:01:09]}  Nd3 {[%clk 0:01:20]} 27. Bd5+ {[%clk 0:01:09]}  Kg7 {[%clk 0:01:19]} 28. a3 {[%clk 0:01:08]}  Re2 {[%clk 0:01:14]} 29. Nd4 {[%clk 0:01:03]}  Rd2 {[%clk 0:01:09]} 30. axb4 {[%clk 0:01:01]}  axb4 {[%clk 0:01:10]} 31. h3 {[%clk 0:00:55]}  Nf4 {[%clk 0:01:02]} 32. Ra7+ {[%clk 0:00:49]}  Kh6 {[%clk 0:01:00]} 33. Nf3 {[%clk 0:00:32]}  Rxg2+ {[%clk 0:00:43]} 34. Kf1 {[%clk 0:00:32]}  Rb2 {[%clk 0:00:35]} 35. Be4 {[%clk 0:00:31]}  Ng6 {[%clk 0:00:14]} 36. h4 {[%clk 0:00:31]}  Rxb3 {[%clk 0:00:13]} 37. Kg2 {[%clk 0:00:32]}  Rb2+ {[%clk 0:00:13]} 38. Kg3 {[%clk 0:00:31]}  Rb3 {[%clk 0:00:11]} 39. h5 {[%clk 0:00:31]}  Rbxf3+ {[%clk 0:00:09]} 40. Bxf3 {[%clk 0:00:30]}  Ne5 {[%clk 0:00:08]} 41. Be4 {[%clk 0:00:29]}  Kxh5 {[%clk 0:00:08]} 42. Rxh7+ {[%clk 0:00:29]}  Kg5 {[%clk 0:00:09]} 43. Rg7+ {[%clk 0:00:27]}  Ng6 {[%clk 0:00:09]} 44. Rb7 {[%clk 0:00:27]}  Re6 {[%clk 0:00:09]} 45. Rb5+ {[%clk 0:00:22]}  Kf6 {[%clk 0:00:08]} 46. Bxg6 {[%clk 0:00:20]}  Kxg6 {[%clk 0:00:09]} 47. Rxb4 {[%clk 0:00:20]}  Kf6 {[%clk 0:00:07]} 48. Kf4 {[%clk 0:00:21]}  Re1 {[%clk 0:00:06]} 49. Rb5 {[%clk 0:00:21]}  Ke6 {[%clk 0:00:07]} 50. Rd5 {[%clk 0:00:21]}  Rf1+ {[%clk 0:00:07]} 51. Ke4 {[%clk 0:00:21]}  Re1+ {[%clk 0:00:07]} 52. Kd4 {[%clk 0:00:21]}  Rd1+ {[%clk 0:00:08]} 53. Ke4 {[%clk 0:00:22]}  Re1+ {[%clk 0:00:08]} 54. Kd4 {[%clk 0:00:23]}  Rd1+ {[%clk 0:00:08]} 55. Ke4 {[%clk 0:00:23]}  Re1+ {[%clk 0:00:08]} 1/2-1/2


[Site "https://www.chess.com"]

[Event "Titled Tuesday Blitz March 21 Early 2023"]
[White "Mrudul Dehankar"]
[Black "Kuchava, Ana"]
[WhiteFideId "25096990"]
[BlackFideId "13605348"]
[WhiteElo "2139"]
[BlackElo "2001"]
[Result "1-0"]
[Round "04"]
[TimeControl "180+2"]
[Date "2023.03.21"]
[WhiteClock "0:00:07"]
[BlackClock "0:00:04"]

1. e4 {[%clk 0:03:00]}  c5 {[%clk 0:02:58]} 2. Nf3 {[%clk 0:03:01]}  d6 {[%clk 0:02:57]} 3. d4 {[%clk 0:03:00]}  cxd4 {[%clk 0:02:58]} 4. Nxd4 {[%clk 0:03:01]}  Nf6 {[%clk 0:02:58]} 5. Nc3 {[%clk 0:03:01]}  Nc6 {[%clk 0:02:55]} 6. Bg5 {[%clk 0:03:01]}  e6 {[%clk 0:02:52]} 7. Qd2 {[%clk 0:03:01]}  Qb6 {[%clk 0:02:46]} 8. Nb3 {[%clk 0:02:10]}  Be7 {[%clk 0:02:39]} 9. O-O-O {[%clk 0:02:09]}  O-O {[%clk 0:02:34]} 10. f3 {[%clk 0:01:44]}  Rd8 {[%clk 0:02:20]} 11. Be3 {[%clk 0:00:58]}  Qc7 {[%clk 0:02:15]} 12. Qf2 {[%clk 0:00:56]}  Nd7 {[%clk 0:02:07]} 13. g4 {[%clk 0:00:55]}  a6 {[%clk 0:02:02]} 14. f4 {[%clk 0:00:51]}  b5 {[%clk 0:01:56]} 15. a3 {[%clk 0:00:51]}  Bb7 {[%clk 0:01:56]} 16. Bg2 {[%clk 0:00:45]}  b4 {[%clk 0:01:47]} 17. axb4 {[%clk 0:00:44]}  Nxb4 {[%clk 0:01:48]} 18. f5 {[%clk 0:00:43]}  Bf6 {[%clk 0:01:38]} 19. Bd4 {[%clk 0:00:34]}  Ne5 {[%clk 0:01:17]} 20. Qg3 {[%clk 0:00:19]}  h6 {[%clk 0:01:14]} 21. h4 {[%clk 0:00:19]}  Qe7 {[%clk 0:00:39]} 22. Kb1 {[%clk 0:00:10]}  Nc4 {[%clk 0:00:35]} 23. Bxf6 {[%clk 0:00:09]}  Qxf6 {[%clk 0:00:36]} 24. g5 {[%clk 0:00:09]}  Qe5 {[%clk 0:00:35]} 25. Qg4 {[%clk 0:00:09]}  Rac8 {[%clk 0:00:15]} 26. Rd4 {[%clk 0:00:09]}  Nxb2 {[%clk 0:00:12]} 27. Kxb2 {[%clk 0:00:09]}  a5 {[%clk 0:00:08]} 28. f6 {[%clk 0:00:08]}  a4 {[%clk 0:00:07]} 29. gxh6 {[%clk 0:00:07]}  Qxf6 {[%clk 0:00:05]} 30. Rf1 {[%clk 0:00:07]}  a3+ {[%clk 0:00:04]} 31. Kxa3 {[%clk 0:00:07]}  Nxc2+ {[%clk 0:00:04]} 32. Kb2 {[%clk 0:00:07]} 1-0


[Site "https://www.chess.com"]

[Event "Titled Tuesday Blitz March 21 Early 2023"]
[White "Kiseleva, Arina"]
[Black "Fernandez Siles, Luis"]
[WhiteFideId "4164989"]
[BlackFideId "2209420"]
[WhiteElo "1756"]
[BlackElo "2186"]
[Result "1-0"]
[Round "04"]
[TimeControl "180+2"]
[Date "2023.03.21"]
[WhiteClock "0:00:37"]
[BlackClock "0:01:37"]

1. d4 {[%clk 0:02:57]}  Nf6 {[%clk 0:02:59]} 2. Nf3 {[%clk 0:02:56]}  g5 {[%clk 0:02:59]} 3. Bxg5 {[%clk 0:02:54]}  Ne4 {[%clk 0:02:54]} 4. Bf4 {[%clk 0:02:50]}  Bg7 {[%clk 0:02:51]} 5. Nbd2 {[%clk 0:02:44]}  d5 {[%clk 0:02:50]} 6. e3 {[%clk 0:02:44]}  Nc6 {[%clk 0:02:49]} 7. Bb5 {[%clk 0:02:23]}  Bd7 {[%clk 0:02:48]} 8. Nxe4 {[%clk 0:02:02]}  dxe4 {[%clk 0:02:46]} 9. Ng5 {[%clk 0:01:55]}  e5 {[%clk 0:01:53]} 10. dxe5 {[%clk 0:00:47]}  Nxe5 {[%clk 0:01:45]} 11. Bxd7+ {[%clk 0:00:46]}  Nxd7 {[%clk 0:01:45]} 12. Qd5 {[%clk 0:00:39]}  Nf6 {[%clk 0:01:37]} 13. Qxf7# {[%clk 0:00:37]} 1-0


[Site "https://www.chess.com"]